fUSD/lending_fUSD_20250103
["ID","MTS","AMOUNT","RATE_DAILY","PERIOD"]
[347528868,1735903878197,-500.0,0.00010358,2]
[347528869,1735903878207,-1278.67,0.00010358,2]
[347528870,1735903878216,-1574.68,0.00010358,2]
[347528871,1735903878225,-534.93,0.00010358,2]
[347528872,1735903878235,-1018.56,0.00010358,2]
[347528873,1735903878244,-6154.2,0.00010358,2]
[347528874,1735903878253,-1511.16,0.00010358,2]
[347528875,1735903878262,-836.15,0.00010358,2]
[347528876,1735903878272,-520.09096464,0.00010358,2]
[347528877,1735903878281,-500.0,0.00010358,2]
[347528878,1735903878290,-849.26,0.00010358,2]
[347528879,1735903878299,-1027.14,0.00010358,2]
[347528880,1735903878308,-632.01,0.00010358,2]
[347528881,1735903878318,-909.52,0.00010358,2]
[347528882,1735903878328,-1663.85,0.00010358,2]
[347528883,1735903878338,-3662.35,0.00010358,2]
[347528884,1735903878348,-1377.16,0.00010358,2]
[347528885,1735903878359,-526.73,0.00010358,2]
[347528886,1735903878368,-793.4,0.00010358,2]
[347528887,1735903878379,-500.0,0.00010358,2]
[347528888,1735903878389,-500.0,0.00010358,2]
[347528889,1735903878398,-545.36,0.00010358,2]
[347528890,1735903878408,-500.0,0.00010358,2]
[347528891,1735903878418,-661.81,0.00010358,2]
[347528892,1735903878428,-647.05,0.00010358,2]
[347528893,1735903878438,-2889.36,0.00010358,2]
[347528894,1735903878448,-510.38,0.00010358,2]
[347528895,1735903878459,-3413.73,0.00010358,2]
[347528896,1735903878469,-713.31,0.00010358,2]
[347528897,1735903878479,-500.0,0.00010358,2]
[347528898,1735903878488,-1305.11,0.00010358,2]
[347528899,1735903878498,-540.79,0.00010358,2]
[347528900,1735903878508,-1566.1,0.00010358,2]
[347528901,1735903878518,-500.0,0.00010358,2]
[347528902,1735903878527,-3823.37,0.00010358,2]
[347528903,1735903878537,-2969.57,0.00010358,2]
[347528904,1735903878547,-732.01,0.00010358,2]
[347528905,1735903878556,-2547.69,0.00010358,2]
[347528906,1735903878566,-500.0,0.00010358,2]
[347528907,1735903878576,-500.0,0.00010358,2]
[347528908,1735903878586,-500.0,0.00010358,2]
[347528909,1735903878596,-590.72,0.00010358,2]
[347528910,1735903878606,-708.21,0.00010358,2]
[347528911,1735903878616,-1451.02,0.00010358,2]
[347528912,1735903878626,-604.56,0.00010358,2]
[347528913,1735903878638,-1012.03,0.00010358,2]
[347528914,1735903878648,-1239.18,0.00010358,2]
[347528915,1735903878660,-500.0,0.00010358,2]
[347528916,1735903878669,-1218.93,0.00010358,2]
[347528917,1735903878679,-500.0,0.00010358,2]
[347528918,1735903878688,-500.0,0.00010358,2]
[347528919,1735903878697,-500.0,0.00010358,2]
[347528920,1735903878707,-500.0,0.00010358,2]
[347528921,1735903878716,-500.0,0.00010358,2]
[347528922,1735903878726,-500.0,0.00010358,2]
[347528923,1735903878736,-841.48,0.00010358,2]
[347528924,1735903878746,-856.82,0.00010358,2]
[347528925,1735903878757,-500.0,0.00010358,2]
[347528926,1735903878770,-6014.05,0.00010358,2]
[347528927,1735903878782,-1206.92,0.00010358,2]
[347528928,1735903878792,-847.59,0.00010358,2]
[347528929,1735903878803,-500.0,0.00010358,2]
[347528930,1735903878813,-500.0,0.00010358,2]
[347528931,1735903878823,-1042.25,0.00010358,2]
[347528932,1735903878833,-808.75,0.00010358,2]
[347528933,1735903878842,-500.0,0.00010358,2]
[347528934,1735903878852,-2043.7,0.00010358,2]
[347528935,1735903878863,-845.37,0.00010358,2]
[347528936,1735903878875,-294.93295324,0.00010358,2]
[347528937,1735903878887,-1103.33,0.00010358,2]
[347528938,1735903878897,-655.99,0.00010358,2]
[347528939,1735903878907,-640.49,0.00010358,2]
[347528940,1735903878917,-767.36,0.00010358,2]
[347528941,1735903878927,-1893.34,0.00010358,2]
[347528942,1735903878937,-1366.68,0.00010358,2]
[347528943,1735903878947,-500.0,0.00010358,2]
[347528944,1735903878958,-2621.28,0.00010358,2]
[347528945,1735903878968,-1163.41,0.00010358,2]
[347528946,1735903878978,-500.0,0.00010358,2]
[347528947,1735903878988,-1149.16,0.00010358,2]
[347528948,1735903878998,-500.0,0.00010358,2]
[347528949,1735903879008,-7683.91,0.00010358,2]
[347528950,1735903879018,-1017.12,0.00010358,2]
[347528951,1735903879028,-1827.02,0.00010358,2]
[347528952,1735903879038,-6916.34,0.00010358,2]
[347528953,1735903879048,-1147.15,0.00010358,2]
[347528954,1735903879058,-1250.64,0.00010358,2]
[347528955,1735903879068,-2892.25,0.00010358,2]
[347528956,1735903879079,-533.34,0.00010358,2]
[347528957,1735903879089,-1470.8,0.00010358,2]
[347528958,1735903879099,-820.99,0.00010358,2]
[347528959,1735903879109,-1308.98,0.00010358,2]
[347528960,1735903879119,-500.0,0.00010358,2]
[347528961,1735903879130,-531.16,0.00010358,2]
[347528962,1735903879141,-870.07,0.00010358,2]
[347528963,1735903879151,-500.0,0.00010358,2]
[347528964,1735903879162,-955.16,0.00010358,2]
[347528965,1735903879173,-2096.11,0.00010358,2]
[347528966,1735903879183,-1992.0,0.00010358,2]
[347528967,1735903879194,-1066.78,0.00010358,2]
[347528968,1735903879203,-1194.8,0.00010358,2]
[347528969,1735903879213,-1498.73,0.00010358,2]
[347528970,1735903879223,-500.0,0.00010358,2]
[347528971,1735903879232,-500.0,0.00010358,2]
[347528972,1735903879243,-1403.54,0.00010358,2]
[347528973,1735903879253,-953.21,0.00010358,2]
[347528974,1735903879262,-1003.93,0.00010358,2]
[347528975,1735903879272,-500.0,0.00010358,2]
[347528976,1735903879283,-1239.98,0.00010358,2]
[347528977,1735903879293,-801.59,0.00010358,2]
[347528978,1735903879302,-802.33,0.00010358,2]
[347528979,1735903879312,-4276.72,0.00010358,2]
[347528980,1735903879322,-886.72,0.00010358,2]
[347528981,1735903879332,-1438.69,0.00010358,2]
[347528982,1735903879342,-3850.57,0.00010358,2]
[347528983,1735903879353,-5038.93,0.00010358,2]
[347528984,1735903879363,-2593.99,0.00010358,2]
[347528985,1735903879373,-1284.41,0.00010358,2]
[347528986,1735903879384,-500.0,0.00010358,2]
[347528987,1735903879393,-3257.07,0.00010358,2]
[347528988,1735903879404,-500.0,0.00010358,2]
[347528989,1735903879414,-1096.88,0.00010358,2]
[347528990,1735903879424,-6894.52,0.00010358,2]
[347528991,1735903879435,-338.62619963,0.00010358,2]
[347528992,1735903879445,-936.58,0.00010358,2]
[347528993,1735903879456,-500.0,0.00010358,2]
[347528994,1735903879466,-3387.43,0.00010358,2]
[347528995,1735903879477,-3284.22,0.00010358,2]
[347528996,1735903879487,-1133.0,0.00010358,2]
[347528997,1735903879498,-917.17,0.00010358,2]
[347528998,1735903879508,-500.0,0.00010358,2]
[347528999,1735903879518,-1261.59,0.00010358,2]
[347529000,1735903879528,-500.0,0.00010358,2]
[347529001,1735903879538,-500.0,0.00010358,2]
[347529002,1735903879548,-702.9,0.00010358,2]
[347529003,1735903879558,-4733.92,0.00010358,2]
[347529004,1735903879568,-3501.61,0.00010358,2]
[347529005,1735903879578,-509.49,0.00010358,2]
[347529006,1735903879588,-588.73,0.00010358,2]
[347529007,1735903879597,-500.0,0.00010359,2]
[347529008,1735903879608,-500.0,0.00010359,2]
[347529009,1735903879618,-3301.88,0.00010359,2]
[347529010,1735903879628,-1679.44,0.00010359,2]
[347529011,1735903879638,-7313.71,0.00010359,2]
[347529012,1735903879647,-9786.66,0.00010359,2]
[347529013,1735903879657,-1391.99922396,0.00010362,3]
[347529014,1735903879666,-1595.88,0.0001039,2]
[347529015,1735903879676,-155.57,0.00010395,2]
[347529016,1735903879685,-44868.76823394,0.000105,2]
[347529017,1735903879695,-1000.0,0.0001051,2]
[347529018,1735903879704,-200.0,0.00010544,3]
[347529019,1735903879713,-200.0,0.00010544,3]
[347529020,1735903879723,-500.0,0.00010603,2]
[347529021,1735903879732,-500.0,0.00010629,2]
[347529022,1735903879742,-500.0,0.00010629,2]
[347529023,1735903879751,-581.16,0.0001063,2]
[347529024,1735903879761,-1343.21,0.0001063,2]
[347529025,1735903879771,-500.0,0.0001063,2]
[347529026,1735903879781,-500.0,0.0001063,2]
[347529027,1735903879791,-847.24,0.0001063,2]
[347529028,1735903879805,-1416.5,0.0001063,2]
[347529029,1735903879816,-500.0,0.0001063,2]
[347529030,1735903879826,-500.0,0.0001063,2]
[347529031,1735903879835,-1339.06,0.0001063,2]
[347529032,1735903879845,-1342.34,0.0001063,2]
[347529033,1735903879855,-1066.66,0.0001063,2]
[347529034,1735903879864,-822.34,0.0001063,2]
[347529035,1735903879878,-716.38,0.0001063,2]
[347529036,1735903879888,-1257.11,0.0001063,2]
[347529037,1735903879898,-843.53,0.0001063,2]
[347529038,1735903879907,-1247.47,0.0001063,2]
[347529039,1735903879919,-500.0,0.0001063,2]
[347529040,1735903879929,-592.69,0.0001063,2]
[347529041,1735903879941,-500.0,0.0001063,2]
[347529042,1735903879952,-1658.3,0.0001063,2]
[347529043,1735903879963,-500.0,0.0001063,2]
[347529044,1735903879973,-1464.03,0.0001063,2]
[347529045,1735903879983,-552.49992537,0.0001063,2]
[347529046,1735903879996,-500.0,0.0001063,2]
[347529047,1735903880007,-500.0,0.0001063,2]
[347529048,1735903880018,-1005.11,0.0001063,2]
[347529049,1735903880028,-519.95,0.0001063,2]
[347529050,1735903880037,-500.0,0.0001063,2]
[347529051,1735903880047,-1574.59,0.0001063,2]
[347529052,1735903880056,-500.0,0.0001063,2]
[347529053,1735903880066,-565.43,0.0001063,2]
[347529054,1735903880075,-843.57,0.0001063,2]
[347529055,1735903880085,-1652.0,0.0001063,2]
[347529056,1735903880095,-808.1,0.0001063,2]
[347529057,1735903880104,-629.25,0.0001063,2]
[347529058,1735903880114,-764.88,0.0001063,2]
[347529059,1735903880124,-1091.92,0.0001063,2]
[347529060,1735903880134,-500.0,0.0001063,2]
[347529061,1735903880144,-1803.37,0.0001063,2]
[347529062,1735903880153,-547.2,0.0001063,2]
[347529063,1735903880163,-793.55,0.0001063,2]
[347529064,1735903880174,-1960.24,0.0001063,2]
[347529065,1735903880183,-1098.5,0.0001063,2]
[347529066,1735903880193,-1005.26,0.0001063,2]
[347529067,1735903880202,-2287.89,0.0001063,2]
[347529068,1735903880213,-1376.76,0.0001063,2]
[347529069,1735903880223,-914.74,0.0001063,2]
[347529070,1735903880233,-542.12,0.0001063,2]
[347529071,1735903880243,-942.97,0.0001063,2]
[347529072,1735903880252,-845.27,0.0001063,2]
[347529073,1735903880262,-1785.49,0.0001063,2]
[347529074,1735903880271,-4316.05,0.0001063,2]
[347529075,1735903880281,-500.0,0.0001063,2]
[347529076,1735903880291,-2159.97,0.0001063,2]
[347529077,1735903880300,-736.25,0.0001063,2]
[347529078,1735903880310,-1334.42,0.0001063,2]
[347529079,1735903880319,-1495.62,0.0001063,2]
[347529080,1735903880329,-754.17,0.0001063,2]
[347529081,1735903880339,-500.0,0.0001063,2]
[347529082,1735903880350,-650.62,0.0001063,2]
[347529083,1735903880359,-4164.56,0.0001063,2]
[347529084,1735903880369,-500.0,0.0001063,2]
[347529085,1735903880379,-1625.31,0.0001063,2]
[347529086,1735903880389,-500.0,0.0001063,2]
[347529087,1735903880399,-611.39,0.0001063,2]
[347529088,1735903880409,-986.21,0.0001063,2]
[347529089,1735903880418,-1298.73,0.0001063,2]
[347529090,1735903880428,-500.0,0.0001063,2]
[347529091,1735903880438,-3531.11,0.0001063,2]
[347529092,1735903880447,-1023.42,0.0001063,2]
[347529093,1735903880457,-1089.53,0.0001063,2]
[347529094,1735903880467,-5813.27,0.0001063,2]
[347529095,1735903880476,-2817.31,0.0001063,2]
[347529096,1735903880485,-1045.47,0.0001063,2]
[347529097,1735903880495,-1481.72,0.0001063,2]
[347529098,1735903880504,-3420.76,0.0001063,2]
[347529099,1735903880514,-5258.68,0.0001063,2]
[347529100,1735903880523,-997.31,0.0001063,2]
[347529101,1735903880534,-857.28,0.0001063,2]
[347529102,1735903880544,-10810.93,0.0001063,2]
[347529103,1735903880553,-1042.24,0.0001063,2]
[347529104,1735903880563,-1826.67,0.0001063,2]
[347529105,1735903880573,-1028.72,0.0001063,2]
[347529106,1735903880582,-4944.06,0.0001063,2]
[347529107,1735903880591,-1208.64,0.0001063,2]
[347529108,1735903880601,-2263.34,0.0001063,2]
[347529109,1735903880610,-4381.19,0.0001063,2]
[347529110,1735903880620,-8233.14,0.0001063,2]
[347529111,1735903880631,-1743.67,0.0001063,2]
[347529112,1735903880640,-1356.78,0.0001063,2]
[347529113,1735903880649,-4030.14,0.0001063,2]
[347529114,1735903880659,-1180.61,0.0001063,2]
[347529115,1735903880669,-3155.79,0.0001063,2]
[347529116,1735903880679,-1269.56,0.0001063,2]
[347529117,1735903880688,-4857.77,0.0001063,2]
[347529118,1735903880698,-1773.18,0.0001063,2]
[347529119,1735903880707,-592.74,0.0001063,2]
[347529120,1735903880717,-1267.3,0.0001063,2]
[347529121,1735903880726,-8253.07,0.0001063,2]
[347529122,1735903880736,-500.0,0.0001063,2]
[347529123,1735903880746,-9575.94,0.0001063,2]
[347529124,1735903880755,-10330.45,0.0001063,2]
[347529125,1735903880764,-7775.68,0.0001063,2]
[347529126,1735903880774,-3274.39,0.0001063,2]
[347529127,1735903880783,-1872.61,0.0001063,2]
[347529128,1735903880794,-4887.13,0.0001063,2]
[347529129,1735903880804,-4449.35,0.0001063,2]
[347529130,1735903880813,-3427.99,0.0001063,2]
[347529131,1735903880822,-551.76,0.0001063,2]
[347529132,1735903880832,-2327.98,0.0001063,2]
[347529133,1735903880841,-4961.53,0.0001063,2]
[347529134,1735903880850,-847.8,0.0001063,2]
[347529135,1735903880860,-1585.98,0.0001063,2]
[347529136,1735903880870,-2872.31,0.0001063,2]
[347529137,1735903881139,-1639.91,0.0001063,2]
[347529138,1735903881149,-1877.41,0.0001063,2]
[347529139,1735903881158,-1119.93,0.0001063,2]
[347529140,1735903881170,-500.0,0.0001063,2]
[347529141,1735903881180,-2299.24,0.0001063,2]
[347529142,1735903881189,-2261.75,0.0001063,2]
[347529143,1735903881198,-500.0,0.0001063,2]
[347529144,1735903881206,-500.0,0.0001063,2]
[347529145,1735903881216,-526.47,0.0001063,2]
[347529146,1735903881226,-660.66,0.0001063,2]
[347529147,1735903881236,-2458.11,0.0001063,2]
[347529148,1735903881246,-5361.51,0.0001063,2]
[347529149,1735903881255,-1226.92,0.0001063,2]
[347529150,1735903881266,-1974.28,0.0001063,2]
[347529151,1735903881275,-899.29,0.0001063,2]
[347529152,1735903881284,-10201.99,0.0001063,2]
[347529153,1735903881293,-506.78,0.0001063,2]
[347529154,1735903881302,-1905.76,0.0001063,2]
[347529155,1735903881311,-1476.88,0.0001063,2]
[347529156,1735903881320,-500.0,0.00010631,2]
[347529157,1735903881330,-369.09606204,0.00010631,2]
[347529158,1735903881339,-786.32,0.00010631,2]
[347529159,1735903881348,-582.76,0.00010631,2]
[347529160,1735903881358,-500.0,0.00010631,2]
[347529161,1735903881367,-741.23,0.00010631,2]
[347529162,1735903881377,-500.0,0.00010631,2]
[347529163,1735903881387,-695.73,0.00010631,2]
[347529164,1735903881396,-500.0,0.00010631,2]
[347529165,1735903881406,-500.0,0.00010631,2]
[347529166,1735903881415,-500.0,0.00010631,2]
[347529167,1735903881425,-693.77,0.00010631,2]
[347529168,1735903881434,-500.0,0.00010631,2]
[347529169,1735903881443,-500.0,0.00010631,2]
[347529170,1735903881452,-500.0,0.00010631,2]
[347529171,1735903881461,-907.41,0.00010631,2]
[347529172,1735903881471,-878.15,0.00010631,2]
[347529173,1735903881480,-500.0,0.00010631,2]
[347529174,1735903881489,-874.72,0.00010631,2]
[347529175,1735903881498,-500.0,0.00010631,2]
[347529176,1735903881508,-376.56217128,0.00010631,2]
[347529177,1735903881517,-500.0,0.00010631,2]
[347529178,1735903881527,-628.84671779,0.00010631,2]
[347529179,1735903881537,-1033.7,0.00010631,2]
[347529180,1735903881546,-628.62,0.00010631,2]
[347529181,1735903881557,-563.93,0.00010631,2]
[347529182,1735903881566,-500.0,0.00010631,2]
[347529183,1735903881576,-500.0,0.00010631,2]
[347529184,1735903881586,-500.0,0.00010631,2]
[347529185,1735903881595,-500.0,0.00010631,2]
[347529186,1735903881604,-500.0,0.00010631,2]
[347529187,1735903881614,-500.0,0.00010631,2]
[347529188,1735903881623,-500.0,0.00010631,2]
[347529189,1735903881632,-500.0,0.00010631,2]
[347529190,1735903881642,-500.0,0.00010631,2]
[347529191,1735903881651,-3393.054164,0.00010631,2]
[347529192,1735903881660,-975.61,0.00010631,2]
[347529193,1735903881668,-500.0,0.00010631,2]
[347529194,1735903881677,-720.4,0.00010631,2]
[347529195,1735903881686,-699.88,0.00010631,2]
[347529196,1735903881695,-339.65554632,0.00010631,2]
[347529197,1735903881705,-527.2,0.00010631,2]
[347529198,1735903881714,-3577.129262,0.00010631,2]
[347529199,1735903881723,-500.0,0.00010631,2]
[347529200,1735903881733,-657.55,0.00010631,2]
[347529201,1735903881742,-1083.0,0.00010631,2]
[347529202,1735903881752,-500.0,0.00010631,2]
[347529203,1735903881762,-550.96,0.00010631,2]
[347529204,1735903881771,-500.0,0.00010631,2]
[347529205,1735903881780,-500.0,0.00010631,2]
[347529206,1735903881790,-1091.28,0.00010631,2]
[347529207,1735903881800,-500.0,0.00010631,2]
[347529208,1735903881810,-620.43,0.00010631,2]
[347529209,1735903881819,-500.0,0.00010631,2]
[347529210,1735903881828,-500.0,0.00010631,2]
[347529211,1735903881838,-554.52,0.00010631,2]
[347529212,1735903881848,-637.58,0.00010631,2]
[347529213,1735903881858,-1163.66,0.00010631,2]
[347529214,1735903881867,-570.62,0.00010631,2]
[347529215,1735903881877,-500.0,0.00010631,2]
[347529216,1735903881890,-541.23,0.00010631,2]
[347529217,1735903881900,-691.37,0.00010631,2]
[347529218,1735903881909,-500.0,0.00010631,2]
[347529219,1735903881918,-500.0,0.00010631,2]
[347529220,1735903881927,-500.0,0.00010631,2]
[347529221,1735903881938,-500.0,0.00010631,2]
[347529222,1735903881948,-7807.56,0.00010631,2]
[347529223,1735903881957,-500.0,0.00010631,2]
[347529224,1735903881967,-1295.69,0.00010631,2]
[347529225,1735903881978,-1479.98,0.00010631,2]
[347529226,1735903881988,-553.08,0.00010631,2]
[347529227,1735903881999,-500.0,0.00010631,2]
[347529228,1735903882008,-1415.87,0.00010631,2]
[347529229,1735903882018,-568.75,0.00010631,2]
[347529230,1735903882028,-2949.36,0.00010631,2]
[347529231,1735903882038,-500.0,0.00010631,2]
[347529232,1735903882048,-500.0,0.00010631,2]
[347529233,1735903882057,-695.69,0.00010631,2]
[347529234,1735903882066,-500.0,0.00010631,2]
[347529235,1735903882076,-1390.9,0.00010631,2]
[347529236,1735903882086,-636.01,0.00010631,2]
[347529237,1735903882095,-1706.23,0.00010631,2]
[347529238,1735903882104,-573.64,0.00010631,2]
[347529239,1735903882113,-554.27,0.00010631,2]
[347529240,1735903882122,-1278.06,0.00010631,2]
[347529241,1735903882131,-500.0,0.00010631,2]
[347529242,1735903882142,-500.0,0.00010631,2]
[347529243,1735903882153,-500.0,0.00010631,2]
[347529244,1735903882165,-500.0,0.00010631,2]
[347529245,1735903882175,-1783.18,0.00010631,2]
[347529246,1735903882184,-2243.13,0.00010631,2]
[347529247,1735903882196,-500.0,0.00010631,2]
[347529248,1735903882207,-639.25,0.00010631,2]
[347529249,1735903882216,-1198.54,0.00010631,2]
[347529250,1735903882226,-500.0,0.00010631,2]
[347529251,1735903882236,-574.92,0.00010631,2]
[347529252,1735903882245,-5301.03,0.00010631,2]
[347529253,1735903882254,-1571.93,0.00010631,2]
[347529254,1735903882263,-1080.42,0.00010631,2]
[347529255,1735903882273,-819.77,0.00010631,2]
[347529256,1735903882282,-535.54,0.00010631,2]
[347529257,1735903882293,-1596.33,0.00010631,2]
[347529258,1735903882303,-700.38,0.00010631,2]
[347529259,1735903882312,-500.0,0.00010631,2]
[347529260,1735903882321,-3799.63,0.00010631,2]
[347529261,1735903882331,-500.0,0.00010631,2]
[347529262,1735903882340,-500.0,0.00010631,2]
[347529263,1735903882349,-594.8,0.00010631,2]
[347529264,1735903882359,-550.0924056,0.00010631,2]
[347529265,1735903882370,-980.87,0.00010631,2]
[347529266,1735903882379,-354.50866912,0.00010631,2]
[347529267,1735903882389,-627.51,0.00010631,2]
[347529268,1735903882399,-1039.78,0.00010631,2]
[347529269,1735903882408,-500.0,0.00010631,2]
[347529270,1735903882417,-1517.42,0.00010631,2]
[347529271,1735903882428,-1294.89,0.00010631,2]
[347529272,1735903882437,-729.16,0.00010631,2]
[347529273,1735903882447,-1378.24,0.00010631,2]
[347529274,1735903882456,-500.0,0.00010631,2]
[347529275,1735903882466,-3001.42,0.00010631,2]
[347529276,1735903882475,-660.04,0.00010631,2]
[347529277,1735903882485,-640.82,0.00010631,2]
[347529278,1735903882494,-534.6,0.00010631,2]
[347529279,1735903882504,-1944.18,0.00010631,2]
[347529280,1735903882513,-580.02,0.00010631,2]
[347529281,1735903882523,-500.0,0.00010631,2]
[347529282,1735903882532,-1037.84,0.00010631,2]
[347529283,1735903882542,-500.0,0.00010631,2]
[347529284,1735903882552,-649.2,0.00010631,2]
[347529285,1735903882561,-1930.89,0.00010631,2]
[347529286,1735903882571,-1286.53,0.00010631,2]
[347529287,1735903882580,-500.0,0.00010631,2]
[347529288,1735903882590,-500.0,0.00010631,2]
[347529289,1735903882599,-500.0,0.00010631,2]
[347529290,1735903882609,-500.0,0.00010631,2]
[347529291,1735903882618,-500.0,0.00010631,2]
[347529292,1735903882628,-725.39,0.00010631,2]
[347529293,1735903882639,-1440.89,0.00010631,2]
[347529294,1735903882648,-500.0,0.00010631,2]
[347529295,1735903882657,-500.0,0.00010631,2]
[347529296,1735903882667,-556.98,0.00010631,2]
[347529297,1735903882676,-500.0,0.00010631,2]
[347529298,1735903882687,-849.97,0.00010631,2]
[347529299,1735903882696,-500.0,0.00010631,2]
[347529300,1735903882706,-966.91,0.00010631,2]
[347529301,1735903882715,-651.0,0.00010631,2]
[347529302,1735903882724,-1048.55,0.00010631,2]
[347529303,1735903882733,-619.92,0.00010631,2]
[347529304,1735903882743,-847.98,0.00010631,2]
[347529305,1735903882752,-500.0,0.00010631,2]
[347529306,1735903882761,-3469.98,0.00010631,2]
[347529307,1735903882771,-500.0,0.00010631,2]
[347529308,1735903882780,-1271.83,0.00010631,2]
[347529309,1735903882790,-2272.14,0.00010631,2]
[347529310,1735903882799,-536.38,0.00010631,2]
[347529311,1735903882809,-3364.24,0.00010631,2]
[347529312,1735903882818,-899.72,0.00010631,2]
[347529313,1735903882828,-500.0,0.00010631,2]
[347529314,1735903882838,-1068.63,0.00010631,2]
[347529315,1735903882847,-1252.08,0.00010631,2]
[347529316,1735903882857,-4553.84,0.00010631,2]
[347529317,1735903882865,-1124.83,0.00010631,2]
[347529318,1735903882875,-629.45,0.00010631,2]
[347529319,1735903882885,-1061.06,0.00010631,2]
[347529320,1735903882896,-648.33,0.00010631,2]
[347529321,1735903882905,-1267.36,0.00010631,2]
[347529322,1735903882915,-2680.52,0.00010631,2]
[347529323,1735903882924,-1938.59,0.00010631,2]
[347529324,1735903882933,-715.06,0.00010631,2]
[347529325,1735903882942,-500.0,0.00010631,2]
[347529326,1735903882951,-223.29611491,0.00010631,2]
[347529327,1735903882960,-907.13,0.00010631,2]
[347529328,1735903882969,-500.0,0.00010631,2]
[347529329,1735903882978,-780.23,0.00010631,2]
[347529330,1735903882987,-500.0,0.00010631,2]
[347529331,1735903882996,-514.25,0.00010631,2]
[347529332,1735903883005,-1179.59,0.00010631,2]
[347529333,1735903883014,-1047.73,0.00010631,2]
[347529334,1735903883024,-1077.73,0.00010631,2]
[347529335,1735903883033,-6127.31,0.00010631,2]
[347529336,1735903883042,-500.0,0.00010631,2]
[347529337,1735903883051,-500.0,0.00010631,2]
[347529338,1735903883060,-512.48,0.00010631,2]
[347529339,1735903883069,-806.61,0.00010631,2]
[347529340,1735903883079,-1175.7,0.00010631,2]
[347529341,1735903883087,-1349.18,0.00010631,2]
[347529342,1735903883096,-4371.78,0.00010631,2]
[347529343,1735903883105,-500.0,0.00010631,2]
[347529344,1735903883115,-500.0,0.00010631,2]
[347529345,1735903883125,-2014.48,0.00010631,2]
[347529346,1735903883135,-575.95,0.00010631,2]
[347529347,1735903883144,-767.03,0.00010631,2]
[347529348,1735903883159,-1279.74,0.00010631,2]
[347529349,1735903883168,-500.0,0.00010631,2]
[347529350,1735903883178,-9955.92,0.00010631,2]
[347529351,1735903883187,-1309.52,0.00010631,2]
[347529352,1735903883196,-1049.06,0.00010631,2]
[347529353,1735903883205,-10938.91,0.00010631,2]
[347529354,1735903883214,-1327.33,0.00010631,2]
[347529355,1735903883223,-500.0,0.00010631,2]
[347529356,1735903883232,-500.0,0.00010631,2]
[347529357,1735903883242,-664.53,0.00010631,2]
[347529358,1735903883251,-1236.06,0.00010631,2]
[347529359,1735903883260,-500.0,0.00010631,2]
[347529360,1735903883270,-2460.33,0.00010631,2]
[347529361,1735903883280,-504.97,0.00010631,2]
[347529362,1735903883289,-1049.3,0.00010631,2]
[347529363,1735903883299,-500.0,0.00010631,2]
[347529364,1735903883308,-500.0,0.00010631,2]
[347529365,1735903883318,-1004.02,0.00010631,2]
[347529366,1735903883327,-500.0,0.00010631,2]
[347529367,1735903883337,-500.0,0.00010631,2]